[Event "Late-Titled-Tuesday-Blitz-October-03-2023"]
[Site "Chess.com"]
[Date "2023.10.03"]
[Round "2"]
[White "Fandorine"]
[Black "stolencandy13"]
[Result "1-0"]
[WhiteElo "2940"]
[BlackElo "2575"]
[TimeControl "180+1"]
[EndTime "14:16:33 PDT"]
[Termination "Fandorine won by checkmate"]

1. Nf3 {[%clk 0:02:50.5]} 1... d5 {[%clk 0:02:59.7]} 2. b3 {[%clk 0:02:48.8]}
2... Nf6 {[%clk 0:02:59.9]} 3. Bb2 {[%clk 0:02:48.7]} 3... c5 {[%clk 0:02:58.6]}
4. g3 {[%clk 0:02:47.4]} 4... Nc6 {[%clk 0:02:58.9]} 5. Bg2 {[%clk 0:02:47.7]}
5... Bf5 {[%clk 0:02:58.7]} 6. e3 {[%clk 0:02:46.2]} 6... e6 {[%clk 0:02:58.8]}
7. h3 {[%clk 0:02:46.3]} 7... Bg6 {[%clk 0:02:52.7]} 8. d3 {[%clk 0:02:41.7]}
8... Bd6 {[%clk 0:02:49.8]} 9. Nbd2 {[%clk 0:02:41.1]} 9... O-O {[%clk
0:02:46.8]} 10. Nh4 {[%clk 0:02:38.9]} 10... Be5 {[%clk 0:02:38.8]} 11. Qc1
{[%clk 0:02:37.9]} 11... Qc7 {[%clk 0:02:36.4]} 12. O-O {[%clk 0:02:34.6]} 12...
Bh5 {[%clk 0:02:19.4]} 13. f4 {[%clk 0:02:22.6]} 13... Bxb2 {[%clk 0:02:18.9]}
14. Qxb2 {[%clk 0:02:23.4]} 14... e5 {[%clk 0:02:00.2]} 15. g4 {[%clk
0:02:15.3]} 15... exf4 {[%clk 0:01:44.8]} 16. exf4 {[%clk 0:02:16.2]} 16... Bxg4
{[%clk 0:01:26.9]} 17. hxg4 {[%clk 0:02:15.4]} 17... Nxg4 {[%clk 0:01:27.8]} 18.
Rae1 {[%clk 0:01:52.9]} 18... d4 {[%clk 0:01:18.6]} 19. Ne4 {[%clk 0:01:20.7]}
19... Ne7 {[%clk 0:01:11.9]} 20. c3 {[%clk 0:01:10.9]} 20... Ng6 {[%clk
0:01:05.8]} 21. Nxg6 {[%clk 0:00:57.3]} 21... fxg6 {[%clk 0:01:05.9]} 22. Qd2
{[%clk 0:00:57.4]} 22... Ne3 {[%clk 0:00:54]} 23. Rxe3 {[%clk 0:00:54]} 23...
dxe3 {[%clk 0:00:54.9]} 24. Qxe3 {[%clk 0:00:54.5]} 24... Rae8 {[%clk
0:00:46.1]} 25. Qxc5 {[%clk 0:00:51]} 25... Qd7 {[%clk 0:00:36]} 26. Qe3 {[%clk
0:00:33.5]} 26... b6 {[%clk 0:00:33.8]} 27. Qg3 {[%clk 0:00:30.3]} 27... Rd8
{[%clk 0:00:29.4]} 28. d4 {[%clk 0:00:29.7]} 28... Rde8 {[%clk 0:00:28.1]} 29.
d5 {[%clk 0:00:28.6]} 29... Qf5 {[%clk 0:00:25]} 30. Nd6 {[%clk 0:00:25.7]}
30... Qc2 {[%clk 0:00:14.4]} 31. Nxe8 {[%clk 0:00:25.3]} 31... Rxe8 {[%clk
0:00:15.3]} 32. d6 {[%clk 0:00:20.6]} 32... Qd2 {[%clk 0:00:15.3]} 33. f5 {[%clk
0:00:21]} 33... Re3 {[%clk 0:00:14.8]} 34. Qf4 {[%clk 0:00:13.7]} 34... Qxc3
{[%clk 0:00:14.1]} 35. fxg6 {[%clk 0:00:10.2]} 35... hxg6 {[%clk 0:00:14.9]} 36.
Bd5+ {[%clk 0:00:10.3]} 36... Kh7 {[%clk 0:00:11.6]} 37. Qh4# {[%clk 0:00:10.9]}
1-0

[Event "Late-Titled-Tuesday-Blitz-October-03-2023"]
[Site "Chess.com"]
[Date "2023.10.03"]
[Round "2"]
[White "tdf98pantani"]
[Black "Truequitos"]
[Result "0-1"]
[WhiteElo "2685"]
[BlackElo "2445"]
[TimeControl "180+1"]
[EndTime "14:16:37 PDT"]
[Termination "Truequitos won on time"]

1. d4 {[%clk 0:03:00.9]} 1... d5 {[%clk 0:02:57.8]} 2. c4 {[%clk 0:03:00.7]}
2... Nc6 {[%clk 0:02:57.7]} 3. Nf3 {[%clk 0:02:53.9]} 3... e5 {[%clk 0:02:57.1]}
4. dxe5 {[%clk 0:02:53.2]} 4... Bb4+ {[%clk 0:02:56.8]} 5. Bd2 {[%clk
0:02:52.7]} 5... dxc4 {[%clk 0:02:57.7]} 6. Nc3 {[%clk 0:02:48.5]} 6... Nge7
{[%clk 0:02:56.4]} 7. e3 {[%clk 0:02:24.1]} 7... Be6 {[%clk 0:02:55.5]} 8. a3
{[%clk 0:02:18.9]} 8... Ba5 {[%clk 0:02:55.4]} 9. Ne4 {[%clk 0:02:11.5]} 9...
O-O {[%clk 0:02:45.8]} 10. Bxa5 {[%clk 0:02:10.2]} 10... Nxa5 {[%clk 0:02:46.7]}
11. Qxd8 {[%clk 0:02:09.5]} 11... Rfxd8 {[%clk 0:02:45.9]} 12. Nc5 {[%clk
0:02:04.7]} 12... Bd5 {[%clk 0:02:42.9]} 13. Be2 {[%clk 0:01:52.3]} 13... b6
{[%clk 0:02:38.6]} 14. Na6 {[%clk 0:01:51.6]} 14... Rac8 {[%clk 0:02:33.5]} 15.
Rd1 {[%clk 0:01:24.1]} 15... c5 {[%clk 0:02:25.7]} 16. O-O {[%clk 0:01:12.3]}
16... Re8 {[%clk 0:02:01.5]} 17. e4 {[%clk 0:00:39.7]} 17... Bb7 {[%clk
0:01:56.4]} 18. Rd7 {[%clk 0:00:33.6]} 18... Bxa6 {[%clk 0:01:51.8]} 19. Rxa7
{[%clk 0:00:34.5]} 19... Ra8 {[%clk 0:01:51.3]} 20. Rd7 {[%clk 0:00:33.5]} 20...
c3 {[%clk 0:01:40.3]} 21. Bxa6 {[%clk 0:00:32.8]} 21... Rxa6 {[%clk 0:01:41.2]}
22. b4 {[%clk 0:00:24.6]} 22... Nb3 {[%clk 0:01:35.3]} 23. Rd3 {[%clk
0:00:20.3]} 23... cxb4 {[%clk 0:01:34.5]} 24. axb4 {[%clk 0:00:20.1]} 24... Rc8
{[%clk 0:01:34.3]} 25. g3 {[%clk 0:00:05]} 25... h6 {[%clk 0:01:28.5]} 26. e6
{[%clk 0:00:04.2]} 26... c2 {[%clk 0:01:20.4]} 27. Rxb3 {[%clk 0:00:03.3]} 27...
c1=Q {[%clk 0:01:20]} 28. Rxc1 {[%clk 0:00:03.9]} 28... Rxc1+ {[%clk 0:01:20.5]}
29. Kg2 {[%clk 0:00:04.8]} 29... fxe6 {[%clk 0:01:20.5]} 30. Nd4 {[%clk
0:00:04.2]} 30... e5 {[%clk 0:01:08.2]} 31. Nf3 {[%clk 0:00:04.3]} 31... Nc6
{[%clk 0:01:06.9]} 32. b5 {[%clk 0:00:04.1]} 32... Na5 {[%clk 0:01:01.6]} 33.
Rd3 {[%clk 0:00:03.3]} 33... Ra8 {[%clk 0:01:00.8]} 34. Nxe5 {[%clk 0:00:03.6]}
34... Re8 {[%clk 0:00:59.4]} 35. f4 {[%clk 0:00:03.8]} 35... Rc5 {[%clk
0:00:57.4]} 36. Rd6 {[%clk 0:00:02.7]} 36... Rxb5 {[%clk 0:00:55]} 37. Ng6
{[%clk 0:00:02.4]} 37... Nc4 {[%clk 0:00:49.5]} 38. Rd7 {[%clk 0:00:01.9]} 38...
Rb2+ {[%clk 0:00:44.9]} 39. Kf3 {[%clk 0:00:02.3]} 39... Rd2 {[%clk 0:00:45]}
40. Rc7 {[%clk 0:00:01.9]} 40... b5 {[%clk 0:00:42.7]} 41. e5 {[%clk 0:00:02.2]}
41... Rc2 {[%clk 0:00:35.8]} 0-1

[Event "Late-Titled-Tuesday-Blitz-October-03-2023"]
[Site "Chess.com"]
[Date "2023.10.03"]
[Round "2"]
[White "WilliamAlfaroCaracas"]
[Black "Ducke13"]
[Result "0-1"]
[WhiteElo "2241"]
[BlackElo "2486"]
[TimeControl "180+1"]
[EndTime "14:16:39 PDT"]
[Termination "Ducke13 won on time"]

1. e4 {[%clk 0:02:57.5]} 1... c5 {[%clk 0:02:59.6]} 2. Nf3 {[%clk 0:02:56.8]}
2... d6 {[%clk 0:02:57.7]} 3. d4 {[%clk 0:02:56.1]} 3... cxd4 {[%clk 0:02:58.6]}
4. Nxd4 {[%clk 0:02:55.8]} 4... Nf6 {[%clk 0:02:59.2]} 5. Nc3 {[%clk 0:02:55.5]}
5... a6 {[%clk 0:02:59.6]} 6. Bg5 {[%clk 0:02:54.9]} 6... Nbd7 {[%clk
0:02:58.8]} 7. f4 {[%clk 0:02:53.6]} 7... Qa5 {[%clk 0:02:59.3]} 8. Qf3 {[%clk
0:02:42.1]} 8... h6 {[%clk 0:02:58.3]} 9. Bh4 {[%clk 0:02:40.3]} 9... e5 {[%clk
0:02:48.8]} 10. Nb3 {[%clk 0:02:36.6]} 10... Qc7 {[%clk 0:02:47.7]} 11. O-O-O
{[%clk 0:02:32.4]} 11... exf4 {[%clk 0:02:47.2]} 12. Nd5 {[%clk 0:02:26.1]}
12... Nxd5 {[%clk 0:02:42]} 13. exd5 {[%clk 0:02:25.5]} 13... g5 {[%clk
0:02:27]} 14. Bf2 {[%clk 0:02:08.5]} 14... Bg7 {[%clk 0:02:24.3]} 15. Qe4+
{[%clk 0:02:02.7]} 15... Ne5 {[%clk 0:02:22.6]} 16. Nd4 {[%clk 0:01:29.5]} 16...
O-O {[%clk 0:02:15.4]} 17. g3 {[%clk 0:01:25.5]} 17... Bg4 {[%clk 0:02:13.2]}
18. Bd3 {[%clk 0:00:46.8]} 18... Nxd3+ {[%clk 0:02:00.3]} 19. Rxd3 {[%clk
0:00:46.3]} 19... Bh5 {[%clk 0:01:52.2]} 20. gxf4 {[%clk 0:00:40.7]} 20... gxf4
{[%clk 0:01:45.6]} 21. Rg1 {[%clk 0:00:25.2]} 21... Rac8 {[%clk 0:01:39.8]} 22.
Qg2 {[%clk 0:00:16.8]} 22... Bg6 {[%clk 0:01:34.3]} 23. Rc3 {[%clk 0:00:14.7]}
23... Qa5 {[%clk 0:01:25.4]} 24. h4 {[%clk 0:00:07.5]} 24... Rxc3 {[%clk
0:01:22.4]} 25. h5 {[%clk 0:00:04.8]} 25... Rg3 {[%clk 0:00:21.3]} 26. Bxg3
{[%clk 0:00:03.6]} 26... Bxd4 {[%clk 0:00:17.6]} 27. hxg6 {[%clk 0:00:02.2]}
27... Be3+ {[%clk 0:00:17.7]} 28. Kb1 {[%clk 0:00:01.3]} 28... Bxg1 {[%clk
0:00:08.1]} 29. gxf7+ {[%clk 0:00:02.2]} 29... Kxf7 {[%clk 0:00:07.5]} 30. Bxf4
{[%clk 0:00:02]} 30... Qe1+ {[%clk 0:00:05.2]} 0-1

[Event "Late-Titled-Tuesday-Blitz-October-03-2023"]
[Site "Chess.com"]
[Date "2023.10.03"]
[Round "2"]
[White "ThePeasant98"]
[Black "WindWhistler11"]
[Result "0-1"]
[WhiteElo "2181"]
[BlackElo "2452"]
[TimeControl "180+1"]
[EndTime "14:16:40 PDT"]
[Termination "WindWhistler11 won by resignation"]

1. d4 {[%clk 0:02:57.1]} 1... Nf6 {[%clk 0:02:59.3]} 2. c4 {[%clk 0:02:57]} 2...
e6 {[%clk 0:02:59.6]} 3. Nf3 {[%clk 0:02:55.6]} 3... c5 {[%clk 0:03:00.2]} 4.
Nc3 {[%clk 0:02:52.2]} 4... cxd4 {[%clk 0:02:51.5]} 5. Nxd4 {[%clk 0:02:51.8]}
5... a6 {[%clk 0:02:52.4]} 6. e4 {[%clk 0:02:51.2]} 6... Qc7 {[%clk 0:02:46.7]}
7. Bd3 {[%clk 0:02:42.6]} 7... Nc6 {[%clk 0:02:40.9]} 8. Nxc6 {[%clk 0:02:37.4]}
8... dxc6 {[%clk 0:02:40.6]} 9. O-O {[%clk 0:02:29.4]} 9... e5 {[%clk
0:02:35.7]} 10. h3 {[%clk 0:02:26.5]} 10... Be7 {[%clk 0:02:30.3]} 11. Be3
{[%clk 0:02:25.4]} 11... Be6 {[%clk 0:02:14.2]} 12. c5 {[%clk 0:02:20]} 12... a5
{[%clk 0:02:07.9]} 13. Na4 {[%clk 0:02:17.2]} 13... Rd8 {[%clk 0:02:04.4]} 14.
Qc2 {[%clk 0:02:16]} 14... Nh5 {[%clk 0:01:52.1]} 15. Rfd1 {[%clk 0:02:10.8]}
15... O-O {[%clk 0:01:50]} 16. Nb6 {[%clk 0:02:07.4]} 16... Nf4 {[%clk
0:01:45.5]} 17. Bf1 {[%clk 0:02:07]} 17... f5 {[%clk 0:01:40.9]} 18. exf5 {[%clk
0:01:58.4]} 18... Bxf5 {[%clk 0:01:39.5]} 19. Qc3 {[%clk 0:01:55.7]} 19... Nd5
{[%clk 0:01:31]} 20. Bc4 {[%clk 0:01:21.4]} 20... Be6 {[%clk 0:01:15.4]} 21.
Qxa5 {[%clk 0:01:13.8]} 21... Kh8 {[%clk 0:01:07.1]} 22. Bxd5 {[%clk 0:01:04.6]}
22... cxd5 {[%clk 0:01:04.9]} 23. b4 {[%clk 0:01:02.8]} 23... d4 {[%clk
0:01:03.2]} 24. Bd2 {[%clk 0:01:02.8]} 24... e4 {[%clk 0:00:56.2]} 25. Rac1
{[%clk 0:00:57.7]} 25... Qe5 {[%clk 0:00:43.2]} 26. Qa3 {[%clk 0:00:54.3]} 26...
Bh4 {[%clk 0:00:42.4]} 27. g3 {[%clk 0:00:51.5]} 27... e3 {[%clk 0:00:42.2]} 28.
Bxe3 {[%clk 0:00:15.7]} 28... dxe3 {[%clk 0:00:39.6]} 29. Qxe3 {[%clk
0:00:10.9]} 29... Rxd1+ {[%clk 0:00:37]} 30. Rxd1 {[%clk 0:00:10.1]} 30... Qxe3
{[%clk 0:00:37.1]} 31. fxe3 {[%clk 0:00:10.1]} 31... Bxg3 {[%clk 0:00:37.8]} 32.
Kg2 {[%clk 0:00:10.5]} 32... Bh4 {[%clk 0:00:34.3]} 33. Rd6 {[%clk 0:00:07.1]}
33... Rf2+ {[%clk 0:00:28.3]} 34. Kg1 {[%clk 0:00:06.9]} 34... Bxh3 {[%clk
0:00:28.5]} 35. c6 {[%clk 0:00:04.9]} 35... bxc6 {[%clk 0:00:22.6]} 36. Rxc6
{[%clk 0:00:05.8]} 36... Bg3 {[%clk 0:00:20.7]} 37. Rc1 {[%clk 0:00:05.4]} 37...
Rg2+ {[%clk 0:00:20.2]} 38. Kf1 {[%clk 0:00:04.9]} 38... Rc2+ {[%clk 0:00:19.6]}
0-1

[Event "Late-Titled-Tuesday-Blitz-October-03-2023"]
[Site "Chess.com"]
[Date "2023.10.03"]
[Round "2"]
[White "KorolDimitriy75"]
[Black "frederiksvane"]
[Result "0-1"]
[WhiteElo "2375"]
[BlackElo "2915"]
[TimeControl "180+1"]
[EndTime "14:16:42 PDT"]
[Termination "frederiksvane won on time"]

1. d4 {[%clk 0:03:00.9]} 1... e6 {[%clk 0:03:00.4]} 2. c4 {[%clk 0:03:00.8]}
2... Bb4+ {[%clk 0:03:00.7]} 3. Bd2 {[%clk 0:02:58.8]} 3... a5 {[%clk
0:03:01.1]} 4. Nc3 {[%clk 0:02:57]} 4... Nf6 {[%clk 0:02:59.3]} 5. e3 {[%clk
0:02:48.2]} 5... O-O {[%clk 0:02:59.5]} 6. Bd3 {[%clk 0:02:47.7]} 6... d5 {[%clk
0:03:00]} 7. Qc2 {[%clk 0:02:45.6]} 7... dxc4 {[%clk 0:02:57.8]} 8. Bxc4 {[%clk
0:02:45.4]} 8... b6 {[%clk 0:02:58]} 9. Nge2 {[%clk 0:02:38.5]} 9... Bb7 {[%clk
0:02:58.3]} 10. O-O {[%clk 0:02:37.4]} 10... Nbd7 {[%clk 0:02:59]} 11. Rad1
{[%clk 0:02:33.2]} 11... Qe7 {[%clk 0:02:58]} 12. a3 {[%clk 0:02:28]} 12... Bd6
{[%clk 0:02:58.1]} 13. Ng3 {[%clk 0:02:17]} 13... c5 {[%clk 0:02:50.3]} 14. Nb5
{[%clk 0:02:02.6]} 14... Bb8 {[%clk 0:02:41.5]} 15. Bc3 {[%clk 0:01:59.1]} 15...
Rc8 {[%clk 0:02:39]} 16. Qe2 {[%clk 0:01:52.5]} 16... cxd4 {[%clk 0:02:33.7]}
17. Bxd4 {[%clk 0:01:35.5]} 17... a4 {[%clk 0:02:29.5]} 18. f3 {[%clk
0:01:23.6]} 18... h5 {[%clk 0:02:26.3]} 19. Rfe1 {[%clk 0:01:06.9]} 19... h4
{[%clk 0:02:25.3]} 20. Nf1 {[%clk 0:01:02.8]} 20... h3 {[%clk 0:02:25.4]} 21. g3
{[%clk 0:01:02.7]} 21... Ne5 {[%clk 0:02:10.1]} 22. Bxe5 {[%clk 0:00:54.4]}
22... Bxe5 {[%clk 0:02:11]} 23. Bd3 {[%clk 0:00:42.5]} 23... Rc5 {[%clk
0:02:04.8]} 24. f4 {[%clk 0:00:33.6]} 24... Bc7 {[%clk 0:02:01.6]} 25. Nd2
{[%clk 0:00:22.9]} 25... Rd8 {[%clk 0:01:56.9]} 26. Nc3 {[%clk 0:00:18.7]} 26...
e5 {[%clk 0:01:18.3]} 27. Nde4 {[%clk 0:00:18.9]} 27... Nxe4 {[%clk 0:01:18.3]}
28. Bxe4 {[%clk 0:00:12.9]} 28... Bxe4 {[%clk 0:01:08]} 29. Nxe4 {[%clk
0:00:13.8]} 29... Rcd5 {[%clk 0:01:08.7]} 30. Nc3 {[%clk 0:00:12.6]} 30... Rxd1
{[%clk 0:00:59.8]} 31. Rxd1 {[%clk 0:00:13.5]} 31... Rxd1+ {[%clk 0:01:00.1]}
32. Qxd1 {[%clk 0:00:09.1]} 32... exf4 {[%clk 0:00:33.4]} 33. Nd5 {[%clk
0:00:09.2]} 33... Qc5 {[%clk 0:00:29.7]} 34. gxf4 {[%clk 0:00:08.6]} 34... Bxf4
{[%clk 0:00:29.5]} 35. Nxf4 {[%clk 0:00:07.2]} 35... Qxe3+ {[%clk 0:00:29.6]}
36. Kh1 {[%clk 0:00:06.3]} 36... Qe4+ {[%clk 0:00:26.3]} 37. Kg1 {[%clk
0:00:05.9]} 37... Qe3+ {[%clk 0:00:22]} 38. Kh1 {[%clk 0:00:05.4]} 38... Qxf4
{[%clk 0:00:22.7]} 39. Qd8+ {[%clk 0:00:04.4]} 39... Kh7 {[%clk 0:00:23.2]} 0-1

[Event "Late-Titled-Tuesday-Blitz-October-03-2023"]
[Site "Chess.com"]
[Date "2023.10.03"]
[Round "2"]
[White "jjbolanos"]
[Black "Schwindle"]
[Result "0-1"]
[WhiteElo "2099"]
[BlackElo "2413"]
[TimeControl "180+1"]
[EndTime "14:16:42 PDT"]
[Termination "Schwindle won by resignation"]

1. e4 {[%clk 0:03:00.9]} 1... e6 {[%clk 0:03:00.2]} 2. d4 {[%clk 0:03:00.8]}
2... d5 {[%clk 0:03:00.5]} 3. Bd3 {[%clk 0:03:01.4]} 3... c5 {[%clk 0:02:58.3]}
4. exd5 {[%clk 0:03:01.5]} 4... Qxd5 {[%clk 0:02:57.7]} 5. Nc3 {[%clk
0:02:52.3]} 5... Qxd4 {[%clk 0:02:47.9]} 6. Nb5 {[%clk 0:02:52.1]} 6... Qd8
{[%clk 0:02:41.4]} 7. Bf4 {[%clk 0:02:44]} 7... Na6 {[%clk 0:02:40.7]} 8. Qe2
{[%clk 0:02:31.5]} 8... Nf6 {[%clk 0:02:36]} 9. O-O-O {[%clk 0:02:16.9]} 9...
Qa5 {[%clk 0:02:27.1]} 10. Bc4 {[%clk 0:01:29.6]} 10... Bd7 {[%clk 0:02:09.2]}
11. Nf3 {[%clk 0:01:19.1]} 11... Be7 {[%clk 0:02:00.3]} 12. Nd6+ {[%clk
0:00:50.7]} 12... Bxd6 {[%clk 0:02:00.6]} 13. Bxd6 {[%clk 0:00:51.4]} 13... b5
{[%clk 0:01:39.4]} 14. Bd3 {[%clk 0:00:13.6]} 14... Qxa2 {[%clk 0:01:38.6]} 15.
Rhe1 {[%clk 0:00:13.2]} 15... Qa1+ {[%clk 0:01:24.5]} 16. Kd2 {[%clk 0:00:13.4]}
16... Qa5+ {[%clk 0:01:08]} 17. c3 {[%clk 0:00:13.9]} 17... Qb6 {[%clk 0:01:01]}
18. Qe5 {[%clk 0:00:06.8]} 18... O-O-O {[%clk 0:00:45.2]} 19. Ke2 {[%clk
0:00:06]} 19... Bc6 {[%clk 0:00:38.6]} 20. Bc2 {[%clk 0:00:05.6]} 20... Nd5
{[%clk 0:00:34]} 21. Rxd5 {[%clk 0:00:01]} 21... exd5 {[%clk 0:00:31.4]} 22. Be7
{[%clk 0:00:01.7]} 22... Rde8 {[%clk 0:00:21.7]} 23. Kf1 {[%clk 0:00:02]} 23...
Nc7 {[%clk 0:00:16.1]} 24. Bf5+ {[%clk 0:00:02.2]} 24... Kb7 {[%clk 0:00:16.5]}
25. Qxg7 {[%clk 0:00:02.4]} 25... Rhg8 {[%clk 0:00:14.7]} 26. Qxf7 {[%clk
0:00:03]} 26... d4 {[%clk 0:00:11.8]} 27. cxd4 {[%clk 0:00:02.8]} 27... Bd5
{[%clk 0:00:12.1]} 28. Qxh7 {[%clk 0:00:02.5]} 28... cxd4 {[%clk 0:00:09.4]} 29.
Be4 {[%clk 0:00:02.8]} 29... Qc6 {[%clk 0:00:08.4]} 30. Bxd5 {[%clk 0:00:01.2]}
30... Qxd5 {[%clk 0:00:09.3]} 31. Re6 {[%clk 0:00:01.6]} 31... Qxe6 {[%clk
0:00:08.6]} 0-1

[Event "Late-Titled-Tuesday-Blitz-October-03-2023"]
[Site "Chess.com"]
[Date "2023.10.03"]
[Round "2"]
[White "FM_Kappeler"]
[Black "TanitoluwaAps116"]
[Result "0-1"]
[WhiteElo "2350"]
[BlackElo "2671"]
[TimeControl "180+1"]
[EndTime "14:16:43 PDT"]
[Termination "TanitoluwaAps116 won by checkmate"]

1. d4 {[%clk 0:03:00.9]} 1... Nf6 {[%clk 0:02:52.4]} 2. c4 {[%clk 0:03:00.9]}
2... e6 {[%clk 0:02:52.8]} 3. g3 {[%clk 0:03:00.8]} 3... d5 {[%clk 0:02:52.6]}
4. Bg2 {[%clk 0:03:00.9]} 4... Bb4+ {[%clk 0:02:53.3]} 5. Bd2 {[%clk 0:03:00.1]}
5... Bd6 {[%clk 0:02:53.9]} 6. Nf3 {[%clk 0:02:59.6]} 6... O-O {[%clk
0:02:54.5]} 7. O-O {[%clk 0:02:59.4]} 7... Nbd7 {[%clk 0:02:55.2]} 8. Qc2 {[%clk
0:02:48.4]} 8... c6 {[%clk 0:02:54.7]} 9. Rd1 {[%clk 0:02:37.3]} 9... Qe7 {[%clk
0:02:51.2]} 10. b3 {[%clk 0:02:07.7]} 10... Ne4 {[%clk 0:02:50.3]} 11. Be1
{[%clk 0:02:06.6]} 11... f5 {[%clk 0:02:49.7]} 12. Nbd2 {[%clk 0:02:06.2]} 12...
Rb8 {[%clk 0:02:35]} 13. e3 {[%clk 0:01:55.4]} 13... Ndf6 {[%clk 0:02:27.2]} 14.
Ne5 {[%clk 0:01:54.3]} 14... Bxe5 {[%clk 0:02:26]} 15. dxe5 {[%clk 0:01:54]}
15... Ng4 {[%clk 0:02:26.6]} 16. Nf3 {[%clk 0:01:43.9]} 16... Bd7 {[%clk
0:02:11.1]} 17. h3 {[%clk 0:01:40.2]} 17... Nh6 {[%clk 0:02:07.4]} 18. b4 {[%clk
0:01:28.6]} 18... g5 {[%clk 0:01:59.4]} 19. b5 {[%clk 0:01:08.6]} 19... g4
{[%clk 0:01:47.7]} 20. hxg4 {[%clk 0:01:08.3]} 20... Nxg4 {[%clk 0:01:41]} 21.
Rab1 {[%clk 0:01:02]} 21... Qg7 {[%clk 0:01:33.7]} 22. bxc6 {[%clk 0:00:56.7]}
22... bxc6 {[%clk 0:01:34.6]} 23. Rxb8 {[%clk 0:00:55.6]} 23... Rxb8 {[%clk
0:01:33.1]} 24. Rb1 {[%clk 0:00:55.3]} 24... Rb6 {[%clk 0:01:00.5]} 25. c5
{[%clk 0:00:50.9]} 25... Nxc5 {[%clk 0:00:50.1]} 26. Rxb6 {[%clk 0:00:39.9]}
26... axb6 {[%clk 0:00:51]} 27. a4 {[%clk 0:00:30.3]} 27... Nxe5 {[%clk
0:00:41.4]} 28. a5 {[%clk 0:00:26]} 28... Nxf3+ {[%clk 0:00:41.6]} 29. Bxf3
{[%clk 0:00:26]} 29... Qa1 {[%clk 0:00:42.3]} 30. Kf1 {[%clk 0:00:14.1]} 30...
Bc8 {[%clk 0:00:23.4]} 31. axb6 {[%clk 0:00:13.5]} 31... Ba6+ {[%clk 0:00:24]}
32. Kg2 {[%clk 0:00:13.3]} 32... Qxe1 {[%clk 0:00:21.7]} 33. Qxc5 {[%clk
0:00:12.1]} 33... Bf1+ {[%clk 0:00:11.7]} 34. Kg1 {[%clk 0:00:10.5]} 34... Be2+
{[%clk 0:00:10.5]} 35. Kg2 {[%clk 0:00:10.3]} 35... Qf1+ {[%clk 0:00:10.6]} 36.
Kh2 {[%clk 0:00:08.9]} 36... Bxf3 {[%clk 0:00:11.1]} 37. b7 {[%clk 0:00:06.6]}
37... Qh1# {[%clk 0:00:11.3]} 0-1

[Event "Late-Titled-Tuesday-Blitz-October-03-2023"]
[Site "Chess.com"]
[Date "2023.10.03"]
[Round "2"]
[White "BigAl"]
[Black "acertijo08"]
[Result "1-0"]
[WhiteElo "2548"]
[BlackElo "2337"]
[TimeControl "180+1"]
[EndTime "14:16:44 PDT"]
[Termination "BigAl won by resignation"]

1. Nf3 {[%clk 0:03:00]} 1... Nf6 {[%clk 0:02:59.6]} 2. g3 {[%clk 0:03:00.6]}
2... e6 {[%clk 0:02:59.6]} 3. Bg2 {[%clk 0:03:01]} 3... d5 {[%clk 0:03:00.3]} 4.
O-O {[%clk 0:03:01.6]} 4... c5 {[%clk 0:03:01]} 5. d3 {[%clk 0:03:02.4]} 5...
Nc6 {[%clk 0:03:01.6]} 6. Nbd2 {[%clk 0:03:03]} 6... Be7 {[%clk 0:02:59.7]} 7.
e4 {[%clk 0:03:03.5]} 7... Qc7 {[%clk 0:02:55.3]} 8. Re1 {[%clk 0:03:03.6]} 8...
b6 {[%clk 0:02:55.3]} 9. exd5 {[%clk 0:02:55.2]} 9... exd5 {[%clk 0:02:52.3]}
10. d4 {[%clk 0:02:51.4]} 10... O-O {[%clk 0:02:51.1]} 11. c3 {[%clk 0:02:50.4]}
11... h6 {[%clk 0:02:43]} 12. Nb3 {[%clk 0:02:48.6]} 12... a5 {[%clk 0:02:36.5]}
13. Bf4 {[%clk 0:02:48]} 13... Bd6 {[%clk 0:02:30.1]} 14. Bxd6 {[%clk
0:02:47.8]} 14... Qxd6 {[%clk 0:02:30.3]} 15. dxc5 {[%clk 0:02:47.5]} 15... bxc5
{[%clk 0:02:30.6]} 16. Nfd2 {[%clk 0:02:39.9]} 16... a4 {[%clk 0:02:24.2]} 17.
Nc1 {[%clk 0:02:39.1]} 17... a3 {[%clk 0:02:19.1]} 18. b3 {[%clk 0:02:38.5]}
18... Bf5 {[%clk 0:02:15.1]} 19. Nc4 {[%clk 0:02:35.4]} 19... Qd8 {[%clk
0:02:07.5]} 20. Ne3 {[%clk 0:02:33.3]} 20... Be4 {[%clk 0:01:57.9]} 21. Nd3
{[%clk 0:02:32.6]} 21... Bxg2 {[%clk 0:01:55.3]} 22. Kxg2 {[%clk 0:02:26.6]}
22... d4 {[%clk 0:01:40.6]} 23. cxd4 {[%clk 0:02:26.7]} 23... cxd4 {[%clk
0:01:40.6]} 24. Nc4 {[%clk 0:02:26.6]} 24... Re8 {[%clk 0:01:32.9]} 25. Qf3
{[%clk 0:02:25.8]} 25... Qd5 {[%clk 0:01:19]} 26. Nb6 {[%clk 0:02:07.5]} 26...
Qxf3+ {[%clk 0:01:17]} 27. Kxf3 {[%clk 0:02:08.2]} 27... Rab8 {[%clk 0:01:12.1]}
28. Nc4 {[%clk 0:02:08]} 28... Nd5 {[%clk 0:01:00.9]} 29. Nxa3 {[%clk
0:02:01.3]} 29... Ncb4 {[%clk 0:00:56.4]} 30. Nxb4 {[%clk 0:01:53.5]} 30... Nxb4
{[%clk 0:00:57.3]} 31. Red1 {[%clk 0:01:45.8]} 31... d3 {[%clk 0:00:50]} 32. Nc4
{[%clk 0:01:45.7]} 32... Red8 {[%clk 0:00:37.9]} 33. Rd2 {[%clk 0:01:40.9]}
33... Nc2 {[%clk 0:00:20.9]} 34. Rad1 {[%clk 0:01:39.8]} 34... Ra8 {[%clk
0:00:21.2]} 35. Rxd3 {[%clk 0:01:29.8]} 35... Rxd3+ {[%clk 0:00:20.2]} 36. Rxd3
{[%clk 0:01:30.5]} 36... Rxa2 {[%clk 0:00:20.3]} 37. Rd8+ {[%clk 0:01:27.7]}
37... Kh7 {[%clk 0:00:20.2]} 38. Rd7 {[%clk 0:01:19.7]} 38... f5 {[%clk
0:00:19.5]} 39. Rd2 {[%clk 0:00:48.9]} 39... Ne1+ {[%clk 0:00:16.6]} 40. Kf4
{[%clk 0:00:42.7]} 40... Ra1 {[%clk 0:00:15.3]} 41. Kxf5 {[%clk 0:00:40.3]}
41... Nf3 {[%clk 0:00:15.7]} 42. Rd7 {[%clk 0:00:37.7]} 42... Nxh2 {[%clk
0:00:16]} 43. Ne3 {[%clk 0:00:29.3]} 43... Rb1 {[%clk 0:00:16]} 44. Rb7 {[%clk
0:00:28.1]} 44... Nf1 {[%clk 0:00:13.9]} 45. Ng4 {[%clk 0:00:28]} 45... Nd2
{[%clk 0:00:12.7]} 46. Nf6+ {[%clk 0:00:27.8]} 1-0